[Event "*** Titled Tuesday Blitz"]
[Site "Chess.com"]
[Date "2020.04.14"]
[Round "3"]
[White "MartinMatthiesen"]
[Black "Berardino"]
[Result "0-1"]
[WhiteElo "2422"]
[BlackElo "2693"]
[TimeControl "180+1"]
[EndTime "10:28:52 PDT"]
[Termination "Berardino won by resignation"]

1. d4 {[%clk 0:03:00.9]} 1... Nf6 {[%clk 0:02:59.3]} 2. c4 {[%clk 0:02:59.7]}
2... e6 {[%clk 0:02:58.2]} 3. Nf3 {[%clk 0:02:58.9]} 3... d5 {[%clk 0:02:53.6]}
4. Nc3 {[%clk 0:02:58.1]} 4... Be7 {[%clk 0:02:53.3]} 5. Bf4 {[%clk 0:02:56.7]}
5... O-O {[%clk 0:02:52.9]} 6. e3 {[%clk 0:02:56.6]} 6... b6 {[%clk 0:02:53.4]}
7. Bd3 {[%clk 0:02:52.1]} 7... dxc4 {[%clk 0:02:52.4]} 8. Bxc4 {[%clk
0:02:51.6]} 8... Ba6 {[%clk 0:02:53.3]} 9. Bxa6 {[%clk 0:02:46.4]} 9... Nxa6
{[%clk 0:02:54.2]} 10. O-O {[%clk 0:02:43.7]} 10... c5 {[%clk 0:02:51.9]} 11.
Ne5 {[%clk 0:02:36.8]} 11... Qc8 {[%clk 0:02:50.3]} 12. Qf3 {[%clk 0:02:32.5]}
12... cxd4 {[%clk 0:02:42.8]} 13. Nc6 {[%clk 0:02:30.9]} 13... Qb7 {[%clk
0:02:36.7]} 14. Nb5 {[%clk 0:01:56.4]} 14... dxe3 {[%clk 0:02:15.9]} 15. Nxe7+
{[%clk 0:01:53.4]} 15... Qxe7 {[%clk 0:02:15.2]} 16. Bd6 {[%clk 0:01:53.2]}
16... Qd7 {[%clk 0:01:48.5]} 17. Bxf8 {[%clk 0:01:52.2]} 17... exf2+ {[%clk
0:01:44.6]} 18. Rxf2 {[%clk 0:01:48.3]} 18... Rxf8 {[%clk 0:01:43.3]} 19. a4
{[%clk 0:01:45]} 19... Nd5 {[%clk 0:01:39.7]} 20. Rd1 {[%clk 0:01:40.2]} 20...
Nab4 {[%clk 0:01:37.1]} 21. Nc3 {[%clk 0:01:18.8]} 21... Qc7 {[%clk 0:01:23.2]}
22. Nxd5 {[%clk 0:01:16.1]} 22... Nxd5 {[%clk 0:01:23.1]} 23. Qb3 {[%clk
0:01:00.2]} 23... Qc5 {[%clk 0:01:12.7]} 24. Qf3 {[%clk 0:00:39.3]} 24... h6
{[%clk 0:00:54.6]} 25. Kh1 {[%clk 0:00:37.2]} 25... Qb4 {[%clk 0:00:53]} 26. b3
{[%clk 0:00:33.2]} 26... Qh4 {[%clk 0:00:35.1]} 27. h3 {[%clk 0:00:30.9]} 27...
Qg5 {[%clk 0:00:33.9]} 28. Re1 {[%clk 0:00:27]} 28... Qg6 {[%clk 0:00:31.5]} 29.
Rc1 {[%clk 0:00:23.3]} 29... Rd8 {[%clk 0:00:29.4]} 30. Rc6 {[%clk 0:00:21.7]}
30... Nf6 {[%clk 0:00:20.7]} 31. Rf1 {[%clk 0:00:19.8]} 31... Rd3 {[%clk
0:00:19.7]} 32. Rc8+ {[%clk 0:00:17.5]} 32... Kh7 {[%clk 0:00:18.8]} 33. Qa8
{[%clk 0:00:17.9]} 33... Qg3 {[%clk 0:00:14.7]} 34. Rh8+ {[%clk 0:00:16.7]}
34... Kg6 {[%clk 0:00:15]} 35. Qc6 {[%clk 0:00:11.5]} 35... Rxb3 {[%clk
0:00:11.5]} 36. Qc2+ {[%clk 0:00:11.2]} 36... Qd3 {[%clk 0:00:10]} 37. Qf2
{[%clk 0:00:11.3]} 37... Qe4 {[%clk 0:00:07.6]} 38. Re1 {[%clk 0:00:10.5]} 38...
Rxh3+ {[%clk 0:00:07.4]} 39. Kg1 {[%clk 0:00:10.9]} 39... Qg4 {[%clk 0:00:02.8]}
40. Re3 {[%clk 0:00:09.9]} 40... Rxe3 {[%clk 0:00:02.6]} 41. Qxe3 {[%clk
0:00:10.1]} 41... Qd1+ {[%clk 0:00:03.1]} 42. Kf2 {[%clk 0:00:08.7]} 42... Ng4+
{[%clk 0:00:04]} 0-1

[Event "*** Titled Tuesday Blitz"]
[Site "Chess.com"]
[Date "2020.04.14"]
[Round "3"]
[White "VladimirBelous"]
[Black "korason34"]
[Result "1-0"]
[WhiteElo "2804"]
[BlackElo "2476"]
[TimeControl "180+1"]
[EndTime "10:28:53 PDT"]
[Termination "VladimirBelous won on time"]

1. d4 {[%clk 0:03:00.2]} 1... Nf6 {[%clk 0:02:57.9]} 2. Nf3 {[%clk 0:02:58.5]}
2... e6 {[%clk 0:02:58.3]} 3. c4 {[%clk 0:02:58.5]} 3... d5 {[%clk 0:02:58.3]}
4. Nc3 {[%clk 0:02:58.5]} 4... Nbd7 {[%clk 0:02:58.2]} 5. Bg5 {[%clk 0:02:58.2]}
5... h6 {[%clk 0:02:43.1]} 6. Bh4 {[%clk 0:02:56.4]} 6... c6 {[%clk 0:02:35.7]}
7. e3 {[%clk 0:02:54.5]} 7... g5 {[%clk 0:02:34.8]} 8. Bg3 {[%clk 0:02:54.4]}
8... Nh5 {[%clk 0:02:35.1]} 9. cxd5 {[%clk 0:02:49.5]} 9... exd5 {[%clk
0:02:26.6]} 10. Bd3 {[%clk 0:02:45]} 10... Nxg3 {[%clk 0:02:25.6]} 11. hxg3
{[%clk 0:02:45.9]} 11... Bg7 {[%clk 0:02:25.9]} 12. Qc2 {[%clk 0:02:44.7]} 12...
Qe7 {[%clk 0:02:25.2]} 13. O-O-O {[%clk 0:02:44.7]} 13... Nf6 {[%clk 0:02:12.8]}
14. Ne5 {[%clk 0:02:39.9]} 14... Be6 {[%clk 0:02:08.2]} 15. f4 {[%clk
0:02:39.6]} 15... O-O-O {[%clk 0:02:05.2]} 16. Qa4 {[%clk 0:02:28]} 16... Kb8
{[%clk 0:02:04.7]} 17. Qxc6 {[%clk 0:02:23]} 17... Ng4 {[%clk 0:01:56]} 18. Qb5
{[%clk 0:02:14.2]} 18... Bxe5 {[%clk 0:01:53.5]} 19. dxe5 {[%clk 0:02:14.5]}
19... Nxe3 {[%clk 0:01:52]} 20. Rd2 {[%clk 0:02:09.3]} 20... gxf4 {[%clk
0:01:39.2]} 21. gxf4 {[%clk 0:02:07.9]} 21... d4 {[%clk 0:01:38.8]} 22. Ne4
{[%clk 0:02:07.3]} 22... Bxa2 {[%clk 0:01:37.9]} 23. Nd6 {[%clk 0:01:46.8]}
23... Rxd6 {[%clk 0:01:26.9]} 24. exd6 {[%clk 0:01:45.8]} 24... Qxd6 {[%clk
0:01:27.5]} 25. b4 {[%clk 0:01:26.9]} 25... Qxf4 {[%clk 0:01:05.8]} 26. Rxa2
{[%clk 0:01:11]} 26... Nd5+ {[%clk 0:01:05.3]} 27. Rd2 {[%clk 0:01:02.8]} 27...
Rc8+ {[%clk 0:00:59.9]} 28. Bc2 {[%clk 0:01:01.8]} 28... Nc3 {[%clk 0:00:25.3]}
29. Qd3 {[%clk 0:01:00]} 29... Na2+ {[%clk 0:00:25]} 30. Kb1 {[%clk 0:00:49]}
30... Nxb4 {[%clk 0:00:19]} 31. Qxd4 {[%clk 0:00:40.2]} 31... Qxd4 {[%clk
0:00:19]} 32. Rxd4 {[%clk 0:00:41.1]} 32... Nxc2 {[%clk 0:00:18.9]} 33. Re4
{[%clk 0:00:38.6]} 33... Na3+ {[%clk 0:00:18.5]} 34. Ka1 {[%clk 0:00:38.4]}
34... Rc6 {[%clk 0:00:15.9]} 35. Reh4 {[%clk 0:00:32.2]} 35... Rc2 {[%clk
0:00:12.4]} 36. g3 {[%clk 0:00:21.4]} 36... Rg2 {[%clk 0:00:12.1]} 37. R1h3
{[%clk 0:00:21.7]} 37... Nc2+ {[%clk 0:00:10.2]} 38. Kb1 {[%clk 0:00:22.1]}
38... Ne3 {[%clk 0:00:07.3]} 39. Rxh6 {[%clk 0:00:21.6]} 39... Nf5 {[%clk
0:00:07.2]} 40. Rf6 {[%clk 0:00:18.1]} 40... Nxg3 {[%clk 0:00:05.7]} 41. Rxf7
{[%clk 0:00:10.4]} 41... a5 {[%clk 0:00:05.3]} 42. Rhh7 {[%clk 0:00:10.4]} 42...
Ne2 {[%clk 0:00:03.2]} 43. Rxb7+ {[%clk 0:00:10.1]} 43... Kc8 {[%clk 0:00:03.8]}
44. Ra7 {[%clk 0:00:09.3]} 44... Nc3+ {[%clk 0:00:01.6]} 45. Kc1 {[%clk
0:00:09.7]} 45... Na2+ {[%clk 0:00:01.6]} 46. Kd1 {[%clk 0:00:10.2]} 46... Nc3+
{[%clk 0:00:01.7]} 47. Ke1 {[%clk 0:00:10.7]} 47... Kb8 {[%clk 0:00:02]} 48.
Rab7+ {[%clk 0:00:09.4]} 48... Ka8 {[%clk 0:00:01.6]} 49. Rbc7 {[%clk
0:00:09.7]} 1-0

[Event "*** Titled Tuesday Blitz"]
[Site "Chess.com"]
[Date "2020.04.14"]
[Round "3"]
[White "SergeiAza"]
[Black "CroissantNeuf"]
[Result "1-0"]
[WhiteElo "2778"]
[BlackElo "2396"]
[TimeControl "180+1"]
[EndTime "10:28:53 PDT"]
[Termination "SergeiAza won by resignation"]

1. e4 {[%clk 0:03:00.9]} 1... e5 {[%clk 0:02:59.4]} 2. Nf3 {[%clk 0:03:00.3]}
2... Nc6 {[%clk 0:02:59.8]} 3. Bb5 {[%clk 0:03:00.4]} 3... a6 {[%clk 0:02:59.3]}
4. Ba4 {[%clk 0:03:00.5]} 4... g6 {[%clk 0:02:59.6]} 5. d4 {[%clk 0:02:56.1]}
5... b5 {[%clk 0:02:58.6]} 6. Bb3 {[%clk 0:02:54.9]} 6... exd4 {[%clk
0:02:58.5]} 7. Nxd4 {[%clk 0:02:50.8]} 7... Na5 {[%clk 0:02:57.6]} 8. a4 {[%clk
0:02:50.1]} 8... Nxb3 {[%clk 0:02:50.2]} 9. cxb3 {[%clk 0:02:37]} 9... Bb7
{[%clk 0:02:34.7]} 10. O-O {[%clk 0:02:35.8]} 10... bxa4 {[%clk 0:02:08.9]} 11.
bxa4 {[%clk 0:02:35.1]} 11... Bg7 {[%clk 0:02:09.4]} 12. Nc3 {[%clk 0:02:34.6]}
12... Ne7 {[%clk 0:02:08.6]} 13. e5 {[%clk 0:02:03.2]} 13... Nc6 {[%clk
0:01:47.1]} 14. Nf3 {[%clk 0:01:35.5]} 14... h6 {[%clk 0:01:26.3]} 15. Nd5
{[%clk 0:01:30]} 15... O-O {[%clk 0:01:20.9]} 16. Bf4 {[%clk 0:01:27.8]} 16...
d6 {[%clk 0:00:59.1]} 17. exd6 {[%clk 0:01:21.6]} 17... cxd6 {[%clk 0:00:58.8]}
18. Rc1 {[%clk 0:01:12.2]} 18... Ne5 {[%clk 0:00:49.1]} 19. b4 {[%clk
0:00:58.1]} 19... Rb8 {[%clk 0:00:31.4]} 20. Rb1 {[%clk 0:00:36]} 20... Re8
{[%clk 0:00:20.6]} 21. Bxe5 {[%clk 0:00:25.7]} 21... dxe5 {[%clk 0:00:20.1]} 22.
Ne3 {[%clk 0:00:25.9]} 22... e4 {[%clk 0:00:18.4]} 23. Nd2 {[%clk 0:00:24.5]}
23... Qd3 {[%clk 0:00:15.4]} 24. Ndc4 {[%clk 0:00:23.7]} 24... Bc6 {[%clk
0:00:10.9]} 25. b5 {[%clk 0:00:10.8]} 25... axb5 {[%clk 0:00:10.6]} 26. axb5
{[%clk 0:00:09.4]} 26... Rxb5 {[%clk 0:00:09.8]} 27. Rxb5 {[%clk 0:00:08]} 27...
Bxb5 {[%clk 0:00:09.5]} 28. Nd6 {[%clk 0:00:08.6]} 28... Qxd1 {[%clk 0:00:08.6]}
29. Rxd1 {[%clk 0:00:08.6]} 29... Rb8 {[%clk 0:00:08.1]} 30. Rb1 {[%clk
0:00:08.6]} 30... Bf8 {[%clk 0:00:05.7]} 31. Nxb5 {[%clk 0:00:08.5]} 31... f5
{[%clk 0:00:06.3]} 32. Nc3 {[%clk 0:00:08.5]} 32... Rc8 {[%clk 0:00:05.9]} 33.
Ned5 {[%clk 0:00:08.2]} 33... Bc5 {[%clk 0:00:04.6]} 34. Kf1 {[%clk 0:00:07.4]}
34... Kf7 {[%clk 0:00:05]} 35. Ke2 {[%clk 0:00:06.4]} 35... Bd4 {[%clk
0:00:05.4]} 36. Rb3 {[%clk 0:00:04.5]} 36... Ke6 {[%clk 0:00:05.3]} 37. f3
{[%clk 0:00:02.5]} 37... Ke5 {[%clk 0:00:05.5]} 38. fxe4 {[%clk 0:00:02.4]}
38... fxe4 {[%clk 0:00:06.4]} 39. Rb5 {[%clk 0:00:02]} 39... Ke6 {[%clk
0:00:04.5]} 40. Nf4+ {[%clk 0:00:02.1]} 40... Kf6 {[%clk 0:00:03.9]} 41. Nxe4+
{[%clk 0:00:02.6]} 41... Kg7 {[%clk 0:00:04.4]} 42. Rd5 {[%clk 0:00:02.6]} 42...
Bb6 {[%clk 0:00:03]} 43. Rd7+ {[%clk 0:00:02.8]} 43... Kh8 {[%clk 0:00:02.6]}
44. Nxg6+ {[%clk 0:00:02.5]} 1-0

[Event "*** Titled Tuesday Blitz"]
[Site "Chess.com"]
[Date "2020.04.14"]
[Round "3"]
[White "VerdeNotte"]
[Black "FairChess_on_YouTube"]
[Result "0-1"]
[WhiteElo "2682"]
[BlackElo "2995"]
[TimeControl "180+1"]
[EndTime "10:28:55 PDT"]
[Termination "FairChess_on_YouTube won by resignation"]

1. e4 {[%clk 0:03:00.9]} 1... g6 {[%clk 0:03:00.1]} 2. d4 {[%clk 0:02:59.9]}
2... Bg7 {[%clk 0:03:00.1]} 3. Nc3 {[%clk 0:03:00.2]} 3... c6 {[%clk 0:03:00.3]}
4. f4 {[%clk 0:02:54.2]} 4... Qb6 {[%clk 0:02:59.9]} 5. Nf3 {[%clk 0:02:53.8]}
5... Nh6 {[%clk 0:03:00.5]} 6. h3 {[%clk 0:02:40.3]} 6... d5 {[%clk 0:02:57.8]}
7. e5 {[%clk 0:02:40.4]} 7... Nf5 {[%clk 0:02:56.7]} 8. Rg1 {[%clk 0:02:40.1]}
8... h5 {[%clk 0:02:48.6]} 9. g4 {[%clk 0:02:35.1]} 9... hxg4 {[%clk 0:02:47.9]}
10. hxg4 {[%clk 0:02:36]} 10... Nh4 {[%clk 0:02:47.6]} 11. Be2 {[%clk
0:02:10.9]} 11... Na6 {[%clk 0:02:29.2]} 12. a3 {[%clk 0:02:05.8]} 12... Be6
{[%clk 0:02:08.7]} 13. Nxh4 {[%clk 0:01:52.2]} 13... Rxh4 {[%clk 0:02:08.1]} 14.
Be3 {[%clk 0:01:48.8]} 14... O-O-O {[%clk 0:01:59.8]} 15. b4 {[%clk 0:01:25.4]}
15... Rdh8 {[%clk 0:01:52.5]} 16. Na4 {[%clk 0:01:16.4]} 16... Qc7 {[%clk
0:01:42.2]} 17. Bxa6 {[%clk 0:01:15.7]} 17... bxa6 {[%clk 0:01:41.7]} 18. Qe2
{[%clk 0:01:14.3]} 18... Kd8 {[%clk 0:01:12.9]} 19. O-O-O {[%clk 0:00:50.6]}
19... Rh2 {[%clk 0:00:52.2]} 20. Qxa6 {[%clk 0:00:47.3]} 20... R8h3 {[%clk
0:00:45.6]} 21. Rde1 {[%clk 0:00:38.4]} 21... Bh6 {[%clk 0:00:39.9]} 22. Kb1
{[%clk 0:00:25]} 22... Bc8 {[%clk 0:00:33.9]} 23. Qf1 {[%clk 0:00:13.4]} 23...
a5 {[%clk 0:00:31.5]} 24. Rg2 {[%clk 0:00:09.4]} 24... axb4 {[%clk 0:00:24.5]}
25. Rxh2 {[%clk 0:00:08.4]} 25... Rxh2 {[%clk 0:00:24.5]} 26. axb4 {[%clk
0:00:08.5]} 26... Bxg4 {[%clk 0:00:23.3]} 27. Qg1 {[%clk 0:00:04]} 27... Qb7
{[%clk 0:00:19.6]} 28. Qxh2 {[%clk 0:00:03.2]} 28... Qxb4+ {[%clk 0:00:19.2]}
29. Nb2 {[%clk 0:00:02]} 29... Qxe1+ {[%clk 0:00:18.8]} 30. Bc1 {[%clk
0:00:02.9]} 30... Bh5 {[%clk 0:00:14.1]} 31. Nd3 {[%clk 0:00:03.1]} 31... Qe2
{[%clk 0:00:12.8]} 32. Qh3 {[%clk 0:00:02.9]} 32... Qf3 {[%clk 0:00:07.4]} 33.
Qh2 {[%clk 0:00:02.6]} 33... Qe2 {[%clk 0:00:06.3]} 34. Qg1 {[%clk 0:00:02.8]}
34... Bg4 {[%clk 0:00:05.6]} 35. Kb2 {[%clk 0:00:02.2]} 35... Bf5 {[%clk
0:00:05.8]} 36. Qg3 {[%clk 0:00:02.2]} 36... Bxd3 {[%clk 0:00:05.3]} 37. Qxd3
{[%clk 0:00:03.1]} 37... Qxd3 {[%clk 0:00:05.6]} 38. cxd3 {[%clk 0:00:04]} 38...
Kd7 {[%clk 0:00:05.8]} 39. Kc3 {[%clk 0:00:04.2]} 39... Bf8 {[%clk 0:00:06.2]}
40. Ba3 {[%clk 0:00:03.5]} 40... Ke6 {[%clk 0:00:05.6]} 41. Kb4 {[%clk
0:00:02.8]} 41... Bh6 {[%clk 0:00:06.1]} 42. Kc5 {[%clk 0:00:03]} 42... Bxf4
{[%clk 0:00:05.8]} 43. Kxc6 {[%clk 0:00:03.4]} 43... g5 {[%clk 0:00:06.4]} 44.
Bb4 {[%clk 0:00:02.9]} 44... g4 {[%clk 0:00:06.7]} 45. Be1 {[%clk 0:00:03.8]}
45... g3 {[%clk 0:00:07]} 46. Kc5 {[%clk 0:00:04.2]} 46... g2 {[%clk 0:00:07.2]}
0-1

[Event "*** Titled Tuesday Blitz"]
[Site "Chess.com"]
[Date "2020.04.14"]
[Round "3"]
[White "Neimar24"]
[Black "aleksa74"]
[Result "1/2-1/2"]
[WhiteElo "2535"]
[BlackElo "2732"]
[TimeControl "180+1"]
[EndTime "10:29:00 PDT"]
[Termination "Game drawn by agreement"]

1. e4 {[%clk 0:03:00.9]} 1... e5 {[%clk 0:02:57]} 2. Nf3 {[%clk 0:02:59.7]} 2...
Nc6 {[%clk 0:02:56.8]} 3. Bc4 {[%clk 0:02:58.7]} 3... Bc5 {[%clk 0:02:56.2]} 4.
c3 {[%clk 0:02:49.5]} 4... Nf6 {[%clk 0:02:56.3]} 5. d3 {[%clk 0:02:39.1]} 5...
d6 {[%clk 0:02:55.7]} 6. Bb3 {[%clk 0:02:35.8]} 6... a6 {[%clk 0:02:55.5]} 7.
Nbd2 {[%clk 0:02:30.6]} 7... Ba7 {[%clk 0:02:52.6]} 8. Nf1 {[%clk 0:02:27.9]}
8... h6 {[%clk 0:02:50.7]} 9. Be3 {[%clk 0:02:26]} 9... O-O {[%clk 0:02:49.4]}
10. Bxa7 {[%clk 0:02:24.3]} 10... Rxa7 {[%clk 0:02:48.8]} 11. Ng3 {[%clk
0:02:20.9]} 11... Re8 {[%clk 0:02:44.1]} 12. O-O {[%clk 0:02:20.2]} 12... d5
{[%clk 0:02:42.5]} 13. Qe2 {[%clk 0:02:18]} 13... Ra8 {[%clk 0:02:35.9]} 14. Nh4
{[%clk 0:02:07.4]} 14... Bg4 {[%clk 0:02:16.9]} 15. f3 {[%clk 0:01:59.9]} 15...
Be6 {[%clk 0:02:17.4]} 16. Nhf5 {[%clk 0:01:57.9]} 16... Kh7 {[%clk 0:02:11.3]}
17. Bc2 {[%clk 0:01:54.4]} 17... g6 {[%clk 0:02:09.5]} 18. Ne3 {[%clk
0:01:47.9]} 18... d4 {[%clk 0:02:05.2]} 19. Nd1 {[%clk 0:01:27.8]} 19... Qd6
{[%clk 0:02:00.8]} 20. Nf2 {[%clk 0:01:25.1]} 20... Rad8 {[%clk 0:01:51.8]} 21.
Qd2 {[%clk 0:01:03.8]} 21... b5 {[%clk 0:01:48.7]} 22. h3 {[%clk 0:01:02.5]}
22... dxc3 {[%clk 0:01:40.4]} 23. bxc3 {[%clk 0:01:01.3]} 23... b4 {[%clk
0:01:41]} 24. cxb4 {[%clk 0:01:01.3]} 24... Qxb4 {[%clk 0:01:39.6]} 25. Qe3
{[%clk 0:00:49.3]} 25... Qd4 {[%clk 0:01:30.8]} 26. Qc1 {[%clk 0:00:49.2]} 26...
Qc5 {[%clk 0:01:26.4]} 27. Ba4 {[%clk 0:00:47.3]} 27... Qxc1 {[%clk 0:01:07.5]}
28. Rfxc1 {[%clk 0:00:48.2]} 28... Nb4 {[%clk 0:01:06.2]} 29. Bxe8 {[%clk
0:00:45.4]} 29... Nxe8 {[%clk 0:01:06.9]} 30. a3 {[%clk 0:00:41.1]} 30... Nxd3
{[%clk 0:01:01.9]} 31. Rd1 {[%clk 0:00:39.9]} 31... Bc4 {[%clk 0:01:01.5]} 32.
Nxd3 {[%clk 0:00:38.3]} 32... Rxd3 {[%clk 0:00:58.8]} 33. Rxd3 {[%clk
0:00:36.9]} 33... Bxd3 {[%clk 0:00:59.7]} 34. Rd1 {[%clk 0:00:36.2]} 34... Bb5
{[%clk 0:00:56.3]} 35. Nf1 {[%clk 0:00:34.2]} 35... Kg7 {[%clk 0:00:54.8]} 36.
Ne3 {[%clk 0:00:33.9]} 36... h5 {[%clk 0:00:47.7]} 37. Rd8 {[%clk 0:00:29.9]}
37... Nd6 {[%clk 0:00:28.5]} 38. Nd5 {[%clk 0:00:29.2]} 38... Nc4 {[%clk
0:00:22]} 39. Nxc7 {[%clk 0:00:22.3]} 39... Nxa3 {[%clk 0:00:21.6]} 40. Ne8+
{[%clk 0:00:17.7]} 40... Kf8 {[%clk 0:00:19.2]} 41. Nc7+ {[%clk 0:00:15.9]}
41... Ke7 {[%clk 0:00:18.8]} 42. Ra8 {[%clk 0:00:14.3]} 42... Bc4 {[%clk
0:00:17.7]} 43. Nxa6 {[%clk 0:00:14]} 43... Bxa6 {[%clk 0:00:16.5]} 44. Rxa6
{[%clk 0:00:14.9]} 44... Nc2 {[%clk 0:00:16.3]} 45. Kf2 {[%clk 0:00:13.7]} 45...
h4 {[%clk 0:00:16.3]} 46. Ke2 {[%clk 0:00:13.2]} 46... Nd4+ {[%clk 0:00:16]} 47.
Kd3 {[%clk 0:00:13]} 47... Ne6 {[%clk 0:00:16.5]} 48. Ra7+ {[%clk 0:00:13.5]}
48... Kf6 {[%clk 0:00:15.9]} 49. Ke3 {[%clk 0:00:13.3]} 49... Nf4 {[%clk
0:00:15.5]} 50. Kf2 {[%clk 0:00:13.6]} 50... Ke6 {[%clk 0:00:13.1]} 51. Ra6+
{[%clk 0:00:14]} 51... Ke7 {[%clk 0:00:13]} 52. Ra5 {[%clk 0:00:13.9]} 52... Ke6
{[%clk 0:00:12.8]} 53. Ra6+ {[%clk 0:00:13.9]} 53... Ke7 {[%clk 0:00:13]} 54.
Ra7+ {[%clk 0:00:13.6]} 54... Ke6 {[%clk 0:00:13.1]} 1/2-1/2

[Event "*** Titled Tuesday Blitz"]
[Site "Chess.com"]
[Date "2020.04.14"]
[Round "3"]
[White "jmduque"]
[Black "731291"]
[Result "0-1"]
[WhiteElo "2377"]
[BlackElo "2598"]
[TimeControl "180+1"]
[EndTime "10:29:00 PDT"]
[Termination "731291 won by checkmate"]

1. e4 {[%clk 0:03:00.9]} 1... e6 {[%clk 0:02:56.5]} 2. d4 {[%clk 0:03:00.7]}
2... d5 {[%clk 0:02:57.4]} 3. Nc3 {[%clk 0:03:01.2]} 3... Bb4 {[%clk 0:02:56.7]}
4. a3 {[%clk 0:03:01.3]} 4... Bxc3+ {[%clk 0:02:54.6]} 5. bxc3 {[%clk
0:03:02.2]} 5... dxe4 {[%clk 0:02:55.2]} 6. Qg4 {[%clk 0:03:01.5]} 6... Nf6
{[%clk 0:02:55.4]} 7. Qxg7 {[%clk 0:03:01.5]} 7... Rg8 {[%clk 0:02:56]} 8. Qh6
{[%clk 0:03:01.4]} 8... Rg6 {[%clk 0:02:56.5]} 9. Qd2 {[%clk 0:03:01]} 9... Nc6
{[%clk 0:02:56.6]} 10. Ne2 {[%clk 0:02:59.6]} 10... Ne7 {[%clk 0:02:56.7]} 11.
Nf4 {[%clk 0:02:57.6]} 11... Rg8 {[%clk 0:02:56.3]} 12. Be2 {[%clk 0:02:52.6]}
12... b6 {[%clk 0:02:53.9]} 13. a4 {[%clk 0:02:51.9]} 13... Bb7 {[%clk
0:02:53.1]} 14. a5 {[%clk 0:02:50.6]} 14... Nf5 {[%clk 0:02:50.8]} 15. O-O
{[%clk 0:02:23]} 15... Nd5 {[%clk 0:02:18.5]} 16. Bb5+ {[%clk 0:02:06.7]} 16...
c6 {[%clk 0:01:57]} 17. a6 {[%clk 0:02:06.8]} 17... cxb5 {[%clk 0:01:47.2]} 18.
axb7 {[%clk 0:02:06]} 18... Rb8 {[%clk 0:01:47.7]} 19. Rxa7 {[%clk 0:02:00.3]}
19... Qg5 {[%clk 0:01:27.1]} 20. Ra8 {[%clk 0:01:16.5]} 20... Kd7 {[%clk
0:01:00.7]} 21. Rxb8 {[%clk 0:01:15]} 21... Rxb8 {[%clk 0:00:48.2]} 22. Nxd5
{[%clk 0:01:08.5]} 22... Qxd2 {[%clk 0:00:48.3]} 23. Nxb6+ {[%clk 0:00:50.4]}
23... Kc6 {[%clk 0:00:48.4]} 24. Bxd2 {[%clk 0:00:37.8]} 24... Kxb6 {[%clk
0:00:48.9]} 25. Rb1 {[%clk 0:00:34.1]} 25... Kc6 {[%clk 0:00:43.5]} 26. Re1
{[%clk 0:00:25.6]} 26... Kd5 {[%clk 0:00:37.6]} 27. Ra1 {[%clk 0:00:18.6]} 27...
Rxb7 {[%clk 0:00:37.5]} 28. Kf1 {[%clk 0:00:18.1]} 28... Nd6 {[%clk 0:00:33.2]}
29. Ra8 {[%clk 0:00:17.6]} 29... Nc4 {[%clk 0:00:29.2]} 30. Bf4 {[%clk
0:00:17.7]} 30... Nb6 {[%clk 0:00:20.6]} 31. Rh8 {[%clk 0:00:16.6]} 31... f5
{[%clk 0:00:19.8]} 32. h4 {[%clk 0:00:14.5]} 32... Kc4 {[%clk 0:00:18.9]} 33.
Be5 {[%clk 0:00:13.3]} 33... Kxc3 {[%clk 0:00:15]} 34. d5+ {[%clk 0:00:13.2]}
34... Kxc2 {[%clk 0:00:15.2]} 35. dxe6 {[%clk 0:00:13.4]} 35... Re7 {[%clk
0:00:12.3]} 36. Bd4 {[%clk 0:00:11.1]} 36... Nd5 {[%clk 0:00:11.8]} 37. Rc8+
{[%clk 0:00:09.7]} 37... Kd3 {[%clk 0:00:11.6]} 38. Be5 {[%clk 0:00:04.6]} 38...
Rxe6 {[%clk 0:00:11.8]} 39. Bg7 {[%clk 0:00:04.2]} 39... Ra6 {[%clk 0:00:12]}
40. g3 {[%clk 0:00:03.5]} 40... b4 {[%clk 0:00:12.1]} 41. h5 {[%clk 0:00:03.5]}
41... b3 {[%clk 0:00:12.2]} 42. h6 {[%clk 0:00:04]} 42... Rb6 {[%clk 0:00:12]}
43. Kg2 {[%clk 0:00:04]} 43... b2 {[%clk 0:00:11.8]} 44. Bxb2 {[%clk 0:00:04.5]}
44... Rxb2 {[%clk 0:00:12.7]} 45. Rh8 {[%clk 0:00:04.8]} 45... e3 {[%clk
0:00:12.8]} 46. Rxh7 {[%clk 0:00:04.1]} 46... Rxf2+ {[%clk 0:00:13.3]} 47. Kh3
{[%clk 0:00:03.9]} 47... e2 {[%clk 0:00:13.4]} 48. Rd7 {[%clk 0:00:03.7]} 48...
e1=Q {[%clk 0:00:12.3]} 49. Rxd5+ {[%clk 0:00:04.6]} 49... Ke4 {[%clk
0:00:12.7]} 50. Rd8 {[%clk 0:00:03.4]} 50... Qh1# {[%clk 0:00:12.8]} 0-1